Cogmind - Beta 13 X1 @@@ ROGUE MODE // 2023.07.02 @ 11:54:00 Player: biogoob Result: Self-destructed Performance ------------- Evolutions (1) 500 Regions Visited (3) 600 Robots Destroyed (14) 70 Value Destroyed (385) 385 Prototype IDs (0) 0 Alien Tech Used (0) 0 Bonus (0) 0 TOTAL SCORE: 1555 Bonus ------- None Cogmind --------- Core Integrity 400/400 Matter 246/300 Energy 99/100 System Corruption 0% Temperature Cool (0) Movement Core (50) Location -9/Materials Parts ------- > --- POWER (1) -------- (None) > --- PROPULSION (3) --- (None) > --- UTILITY (3) ------ (None) > --- WEAPON (2) ------- Beam Rifle > --- INVENTORY (5) ---- Light Treads Light Treads Improved Heat Sink Terrain Scanner EM Pulse Gun Peak State ------------ > --- POWER ------------ Light Ion Engine > --- PROPULSION ------- Aluminum Leg Aluminum Leg > --- UTILITY ---------- Small Storage Unit Terrain Scanner > --- WEAPON ----------- EM Pulse Gun Assault Rifle > --- INVENTORY -------- Light Ion Engine Light Treads Light Treads Wheel Wheel Improved Heat Sink Light Assault Rifle Grenade Launcher [Rating: 8] Favorites ----------- Power Light Ion Engine Engine Light Ion Engine Propulsion Aluminum Leg Leg Aluminum Leg Utility Terrain Scanner Device Terrain Scanner Storage Small Storage Unit Weapon Assault Rifle Energy Gun EM Pulse Gun Ballistic Gun Assault Rifle Launcher Grenade Launcher Build | -11 -10 -10 -9 ------- Run | Jun Mat Min Mat Slots Evolved 2 | . . . 2 Power . | . . . . Propulsion 1 | . . . 1 Utility 1 | . . . 1 Weapon . | . . . . Parts Attached 8 | . 5 1 2 Power . | . . . . Engine . | . . . . Core . | . . . . Reactor . | . . . . Propulsion . | . . . . Treads . | . . . . Leg . | . . . . Wheel . | . . . . Hover . | . . . . Flight . | . . . . Utility 3 | . 2 . 1 Device 2 | . 1 . 1 Storage 1 | . 1 . . Processor . | . . . . Hackware . | . . . . Protection . | . . . . Artifact . | . . . . Weapon 5 | . 3 1 1 Energy Gun 1 | . . . 1 Energy Cannon . | . . . . Ballistic Gun 1 | . . 1 . Ballistic Cannon . | . . . . Launcher 3 | . 3 . . Special Weapon . | . . . . Impact Weapon . | . . . . Slashing Weapon . | . . . . Piercing Weapon . | . . . . Special Melee Weapon . | . . . . Unidentified Prototypes . | . . . . Parts Lost 3 | . 1 2 . Power . | . . . . Propulsion 1 | . . 1 . Utility . | . . . . Weapon 2 | . 1 1 . Highest Loss Streak 1 | . 1 1 . To Critical Strikes . | . . . . Average Slot Usage (%) 89 | . 98 86 16 Engine 12 | . 14 12 . Leg 25 | . 28 24 . Device 12 | . 12 12 11 Storage 12 | . 14 12 . Energy Gun 4 | . 7 . 5 Ballistic Gun 15 | . 14 19 . Launcher 5 | . 6 4 . Naked Turns 20 | . . 12 8 Heaviest Build 19 | 12 19 19 4 Greatest Support 20 | 20 20 20 3 Greatest Overweight (x) 1 | . . . 1 Average Overweight (x) . | . . . . Largest Inventory Capacity 10 | . 10 10 5 Average Capacity 8 | . 8 9 5 Most Carried 10 | . 8 10 5 Average Carried 7 | . 7 8 4 Final Capacity 10 | 8 10 5 5 Final Carried 8 | 6 8 5 5 Class Distribution -------------------- 100% | Mutant Dominant Class ---------------- Mutant | -10/Materials Mutant | -10/Mines Mutant | -9/Materials Resources | -11 -10 -10 -9 ----------- Run | Jun Mat Min Mat Matter Collected 341 | 200 99 42 . Remotely . | . . . . Salvage Created 316 | . 237 79 . Parts 29 | . 26 3 . Haulers Intercepted . | . . . . Recyclers Shooed 1 | . 1 . . Parts Field Recycled . | . . . . Retrieved Matter . | . . . . Parts Self-Destructed . | . . . . Prevented . | . . . . Kills | -11 -10 -10 -9 ------- Run | Jun Mat Min Mat Combat Hostiles Destroyed 8 | . 4 4 . Guns 4 | . 2 2 . AOE 4 | . 2 2 . Classes Destroyed 7 | . 6 1 . Worker 2 | . 2 . . Builder 3 | . 3 . . Recycler 1 | . 1 . . Operator 1 | . 1 . . Watcher 1 | . 1 . . Grunt 6 | . 4 2 . Assembled 2 | . . 2 . Best Kill Streak 12 | . 12 2 . Combat Bots Only 2 | . 2 2 . Max Kills in Single Turn 7 | . 7 1 . Gunslinging . | . . . . Exploded 2 | . 2 1 . Melee . | . . . . Uniques/NPCs Destroyed . | . . . . Combat | -11 -10 -10 -9 -------- Run | Jun Mat Min Mat Damage Taken 527 | . 143 384 . Core 111 | . 18 93 . Absorbed by Shields . | . . . . Core Remaining (%) 77 | 100 . 55 . Volleys Fired 21 | . 12 9 . Largest 2 | . 2 2 . Hottest 60 | . 60 40 . Shots Fired 35 | . 20 15 . Gun 28 | . 16 12 . Cannon . | . . . . Launcher 7 | . 4 3 . Special . | . . . . Kinetic 20 | . 8 12 . Thermal . | . . . . Explosive 7 | . 4 3 . Electromagnetic 8 | . 8 . . Robot Hit Streak 7 | . 5 7 . Robot Miss Streak 3 | . 2 3 . Penetration Max . | . . . . Secondary Targets . | . . . . Shots Hit Robots 22 | . 12 10 . Core Hits 23 | . 13 10 . Critical Kills . | . . . . Critical Parts Destroyed . | . . . . Critical Strikes 1 | . 1 . . Corrupt 1 | . 1 . . Melee Attacks . | . . . . Impact . | . . . . Slashing . | . . . . Piercing . | . . . . Sneak Attacks . | . . . . Combat Hostiles . | . . . . Follow-up Attacks . | . . . . Damage Inflicted 1285 | . 1052 233 . Guns 258 | . 143 115 . Cannons . | . . . . Explosions 1027 | . 909 118 . Melee . | . . . . Ramming . | . . . . Kinetic 193 | . 78 115 . Thermal 811 | . 811 . . Explosive 216 | . 98 118 . Electromagnetic 65 | . 65 . . Impact . | . . . . Slashing . | . . . . Piercing . | . . . . Highest Corruption . | . . . . Average Corruption . | . . . . Corruption Purged . | . . . . Corruption Blocked . | . . . . Overload Shots . | . . . . Overflow Damage 167 | . 136 31 . Projectiles . | . . . . Explosions 167 | . 136 31 . Melee . | . . . . Knockbacks . | . . . . Impact . | . . . . Kinetic . | . . . . Secondary . | . . . . Self-Inflicted Damage 233 | . 115 118 . Shots 6 | . 3 3 . Rammed . | . . . . Targets Rammed . | . . . . Kicked . | . . . . Crushed . | . . . . Highest Temperature 21 | . 21 13 . Average Temperature 11 | . 14 5 . Received Heat Transfer 73 | . 15 58 . Siege Activations . | . . . . Robots Corrupted . | . . . . Combat Hostiles . | . . . . Parts Fried . | . . . . Impact Corruptions . | . . . . Robots Melted . | . . . . Combat Hostiles . | . . . . Parts Melted . | . . . . Heat Transferred 550 | . 550 . . Parts Sabotaged . | . . . . Parts Stolen . | . . . . Parts Stripped . | . . . . Power Chain Reactions 1 | . 1 . . Missiles Intercepted . | . . . . Alert | -11 -10 -10 -9 ------- Run | Jun Mat Min Mat Peak Influence 367 | . 367 209 77 Initial 142 | . . 142 77 Average 183 | . 193 186 77 Maximum Alert Level 1 | . 1 1 . Low Security (%) 51 | . 52 42 100 Level 1 48 | . 47 58 . Level 2 . | . . . . Level 3 . | . . . . Level 4 . | . . . . Level 5 . | . . . . High Security . | . . . . Max Security . | . . . . Squads Dispatched 2 | . 1 . 1 Investigation 1 | . . . 1 Extermination . | . . . . Reinforcement 1 | . 1 . . Assault . | . . . . Garrison . | . . . . Intercept . | . . . . Searches Triggered . | . . . . Construction Impeded . | . . . . Haulers Reinforced . | . . . . Active Scanning Responses . | . . . . Cargo Convoy Interrupts . | . . . . Stealth | -11 -10 -10 -9 --------- Run | Jun Mat Min Mat Distress Signals 2 | . 2 . . Communications Jammed . | . . . . Distress Signals . | . . . . Times Spotted 24 | . 9 15 . Peak Tracking Total 19 | . 5 19 . Tactical Retreats 2 | . . 2 . Traps | -11 -10 -10 -9 ------- Run | Jun Mat Min Mat Traps Triggered . | . . . . Indirectly . | . . . . Trap Hack Attempts . | . . . . Triggered . | . . . . Disarmed . | . . . . Reprogrammed . | . . . . Reused . | . . . . Traps Extracted . | . . . . Installed . | . . . . Triggered . | . . . . Machines | -11 -10 -10 -9 ---------- Run | Jun Mat Min Mat Machines Disabled 10 | . 10 . . Max in Single Turn 9 | . 9 . . Machines Repaired . | . . . . Machines Sabotaged . | . . . . Overloaded Fab Kills . | . . . . Hacking | -11 -10 -10 -9 --------- Run | Jun Mat Min Mat Machines Accessed 3 | . 2 . 1 Terminals 3 | . 2 . 1 Fabricators . | . . . . Repair Stations . | . . . . Recycling Units . | . . . . Scanalyzers . | . . . . Garrison Access . | . . . . Total Hacks 9 | . 5 . 4 Successful 3 | . 2 . 1 Failed 6 | . 3 . 3 Catastrophic . | . . . . Database Lockouts . | . . . . Manual 1 | . 1 . . Terminals 9 | . 5 . 4 Fabricators . | . . . . Repair Stations . | . . . . Recycling Units . | . . . . Scanalyzers . | . . . . Garrison Access . | . . . . Terminal Hacks 2 | . 1 . 1 Unreport Threat 1 | . . . 1 Hauler Manifests 1 | . 1 . . Fabricator Hacks . | . . . . Repair Station Hacks . | . . . . Recycling Unit Hacks . | . . . . Scanalyzer . | . . . . Garrison Access Hacks . | . . . . Unauthorized Hacks 1 | . 1 . . Terminals 1 | . 1 . . Botnet 1 | . 1 . . Fabricators . | . . . . Repair Stations . | . . . . Recycling Units . | . . . . Scanalyzers . | . . . . Garrison Access . | . . . . Data Cores Recovered . | . . . . Used . | . . . . Hacking Detections 2 | . 1 . 1 Full Trace Events 1 | . . . 1 Feedback Events . | . . . . Feedback Blocked . | . . . . Robot Schematics Acquired . | . . . . Robots Built . | . . . . Authchips . | . . . . Time . | . . . . Total Robot Build Rating . | . . . . Part Schematics Acquired . | . . . . Parts Built . | . . . . Authchips . | . . . . Time . | . . . . Total Part Build Rating . | . . . . Parts Repaired . | . . . . Time . | . . . . Parts Recycled . | . . . . Recycled Matter . | . . . . Retrieved Matter . | . . . . Retrieved Components . | . . . . Parts Scanalyzed . | . . . . Part Schematics Acquired . | . . . . Parts Damaged . | . . . . Bothacking | -11 -10 -10 -9 ------------ Run | Jun Mat Min Mat Used RIF Installer . | . . . . Robots Hacked . | . . . . Non-combat . | . . . . Combat . | . . . . Robot Hacks Applied . | . . . . Relay Couplers Released . | . . . . Fabnet Peak Effective % . | . . . . Robots Rewired . | . . . . Allies Hacked . | . . . . Hacks Repelled . | . . . . Allies | -11 -10 -10 -9 -------- Run | Jun Mat Min Mat Total Allies . | . . . . Largest Group . | . . . . Highest-Rated Group . | . . . . Highest-Rated Ally . | . . . . Total Orders . | . . . . Ally Attacks . | . . . . Total Damage . | . . . . Kills . | . . . . Allies Corrupted . | . . . . Allies Melted . | . . . . Intel | -11 -10 -10 -9 ------- Run | Jun Mat Min Mat Robot Analysis Total . | . . . . Derelict Logs Recovered 1 | . . 1 . Drone Launches . | . . . . Drone Recoveries . | . . . . Exploration | -11 -10 -10 -9 ------------- Run | Jun Mat Min Mat Turns Passed 416 | . 239 150 27 Spaces Moved 308 | 1 157 110 40 Core 64 | . . 24 40 Treads . | . . . . Legs 244 | 1 157 86 . Wheels . | . . . . Hover . | . . . . Flight . | . . . . Fastest Speed 50 | 120 120 50 50 Average Speed 106 | 120 120 104 57 Slowest Speed 120 | 120 120 120 100 Overloaded Moves . | . . . . Propulsion Burnouts . | . . . . Robots Hopped . | . . . . Cave-ins Triggered . | . . . . Exploration Rate (%) 19 | 2 37 29 11 Regions Visited 3 Branch Regions 1 Pre-discovered Areas . | . . . . Known Exits Taken . | . . . . Unknown Exits Taken 3 | 1 1 1 . Scrap Searched 1 | . . 1 . Spaces Dug . | . . . . Terrain Destroyed 59 | . 40 19 . Melee . | . . . . Projectile . | . . . . AOE 59 | . 40 19 . Terrain Rammed . | . . . . Walls Destroyed . | . . . . Machines Disabled . | . . . . Actions | -11 -10 -10 -9 --------- Run | Jun Mat Min Mat Total 360 | . 187 130 43 Wait 17 | . 10 7 . Move 305 | . 156 109 40 Hop . | . . . . Pick Up 5 | . 2 3 . Fast Attach 3 | . 2 . 1 Attach 2 | . . 1 1 Detach 1 | . . . 1 Swap 3 | . 3 . . Drop 3 | . 2 1 . Fire 21 | . 12 9 . Melee . | . . . . Ram . | . . . . Kick . | . . . . Crush . | . . . . Escape Stasis . | . . . . Rewire . | . . . . Trap . | . . . . Miscellaneous . | . . . . Route ------- -11/Junkyard -10/Materials -10/Mines -9/Materials History --------- Turn | Location | Event 1 | -11/Junkyard | Discovered new exit (range 0) 1 | -11/Junkyard | Entered Materials 222 | -10/Materials | Discovered new exit (range 16) 240 | -10/Materials | Entered Mines 243 | -10/Mines | Learned Materials stockpile data 315 | -10/Mines | Build established: Mutant 317 | -10/Mines | Assembled infested the area 322 | -10/Mines | Assisted by a Guerilla fighting off Assembled 378 | -10/Mines | Released all parts (6) 388 | -10/Mines | Discovered new exit (range 5) 390 | -10/Mines | Entered Materials 390 | -9/Materials | Evolved 2 slots: Propulsion x1, Utility x1 417 | -9/Materials | Self-destructed Last Messages --------------- 00378_ Released Assault Rifle. 00378_ Released Med. Storage Unit. 00378_ Released Terrain Scanner. 00378_ Released Assault Rifle. 00378_ Released Lgt. Ion Engine. 00378_ Released Aluminum Leg. 00381_ U-05 Engineer destroyed. 00383_ as-04776 sneak attacks. 00388_ EXIT=FOUND PARAMETERS=PROPULSION+1,UTILITY+1 LOCATION=UNKNOWN GOAL=ESCAPE Loading Materials stockpile data (x1)... 00408_ Acquired Beam Rifle. 00417_ Connecting with Terminal... 00417_ Current location identified: Materials >>Alert(Purge) Purged threat record, alert level lowered. 00417_ ALERT: Suspicious activity at Terminal M009. Dispatching Investigation squad. Map ----- +----------------------------------------------------+ | ???????????????????????????????????????????????? | | ???????????????????????????????????????????????? | | ???????????????????????????????????????????????? | | ???????????????????????????????????????????????? | | ???????????????????????????????????????????????? | | ???????????????????????????????????????????????? | | ???????????????????????????????????????????????? | | ???????????????????????????????????????????????? | | ???????????????????????????????????????????????? | | ???????????????????????????????????????????????? | | ???????????????????????????????????????????????? | | ???????????????????????????????????????????????? | | ???????????????????????????????????????????????? | | ???????????????????????????????????????????????? | | ???????????????????????????????????????????????? | | ???????????????????????????????????????????????? | | ????????????????????????????#????????????######? | | ??????????????????????????????????#####? ?? | | ??????????????????????????????????# #? """ ?? | | ??????????????????????????????????# # """ ? | | ??????????????????????????????????# # """ # | | ??????????????????????????????????# + # | | ??????????????????????????????????# # """ # | | ???????????????????????######?????# # """ ? | | ???????????????????????# T #?????# #? """ ?? | | ????????????#??????????# @ #?????# #? ?? | | ???????????????????????# #?????# ########## | | ???????????????????????# #??#??# # # | | ???????????????????????# #?????# + """# | | ????????????????????"??# #?????# # """# | | ???????????????????????# #?????# # """# | | ???????????????????????# #?????# # # | | ???????????????????????# #?????# # """ # | | ?????????????????+########+###????# # "R # | | ???????????????# ###### # """ # | | ???????????? # # | | ???????????? ########## | | ????????????? " """"" """ #????????? | | ?????????????????"""""" """ #????????? | | ?????????????????? """ """ #???????? | | ??????????????????? #???????? | | ??????????????????? #???????? | | ?????????????????? " """"" #???????? | | ????????????????" """"""""" #???????? | | ????????????????" """ """ #???????? | | ???????????????? #???????? | | ??????????????????? ?????? ?? #???????? | | ???????????????????????????????? +???????? | | ???????????????????????????????? #???????? | | ?????????????????????????????????###+#+????????? | +----------------------------------------------------+ Best States ------------- Heat Dissipation 28 Energy Generation 10 Energy Capacity 125 Matter Stores 300 Matter Capacity 300 Sight Range 16 Terrain Scan Range 14 Terrain Scan Density 10 Evasion (%) 55 Item Schematics ----------------- None Robot Schematics ------------------ None Fabricated ------------ Nothing Alien Tech Used ----------------- None Achievements -------------- None Challenges ------------ None Game ------ Seed LightHeatScrap Manual? 0 Play Time 00:04:25 Cumulative 118.2 hours Start 2023.06.30 @ 19:00:39 End 2023.07.02 @ 11:54:00 Sessions 3 Manual Loads 0 Difficulty Rogue Special Mode None Game No. 142 Rogue 119 Adventurer 19 Explorer 4 Win Type - Total 1 Types 0/0/1/0/0/0/0/0/0 Lore% 49 Gallery% 54 Achievement% 46 Wizard Run 0 Options --------- ASCII 1 Keyboard 1 Movement Vi Keybinds 0 Fullscreen 2 Font 18/SmallcapsGlow Map View 76x50 Tactical HUD 1 Map Filters SATURATION(80) Filters SATURATION(80) Steam 1 RUN: f417b56e-e988-4056-82a6-a5cb0647f53a